bitfinex-derivatives/quotes_BTCF0:USTF0_20250108
["timestamp","ask_amount","ask_price","bid_price","bid_amount"]
[1736342203347,0.052398,95456.0,95448.0,0.3608]
[1736342203554,0.052402,95449.0,95448.0,0.3608]
[1736342203759,0.052402,95449.0,95427.0,0.18574201]
[1736342203760,0.05241,95434.0,95433.0,0.052411]
[1736342204059,0.3608,95434.0,95433.0,0.052411]
[1736342204445,0.052408,95439.0,95436.0,0.052409]
[1736342204652,0.052408,95439.0,95437.0,0.052408]
[1736342204858,0.36192001,95451.0,95429.0,0.15819575]
[1736342205151,0.36192001,95451.0,95427.0,0.3608]
[1736342205152,0.3608,95451.0,95450.0,0.052401]
[1736342205562,0.3608,95451.0,95443.0,0.052405]
[1736342205745,0.052405,95445.0,95443.0,0.052405]
[1736342206350,0.18790074,95444.0,95443.0,0.052405]
[1736342206861,0.18790074,95444.0,95435.0,0.3608]
[1736342207059,0.052408,95439.0,95438.0,0.052407]
[1736342207264,0.052411,95433.0,95431.0,0.052411]
[1736342208158,0.51899575,95441.0,95421.0,0.1059]
[1736342208363,0.3608,95432.0,95424.0,0.05254333]
[1736342208556,0.413211,95432.0,95431.0,0.002]
[1736342208866,0.3608,95432.0,95424.0,0.00012833]
[1736342209059,0.052415,95425.0,95424.0,0.00012833]
[1736342209260,0.052415,95425.0,95424.0,0.00312833]
[1736342210461,0.01192433,95427.0,95420.0,0.00157158]
[1736342210664,0.18790287,95428.0,95403.0,0.052427]
[1736342210665,0.51899575,95421.0,95403.0,0.052427]
[1736342210875,0.3608,95404.0,95403.0,0.052427]
[1736342211453,0.052427,95403.0,95398.0,0.05243]
[1736342211768,0.052428,95402.0,95398.0,0.05243]
[1736342212265,0.052428,95402.0,95392.0,0.052433]
[1736342212469,0.052428,95402.0,95385.0,0.052437]
[1736342212771,0.052428,95402.0,95386.0,0.052436]
[1736342212954,0.052428,95402.0,95380.0,0.15819575]
[1736342213255,0.72170433,95404.0,95402.0,0.052428]
[1736342213866,0.052428,95402.0,95394.0,0.052432]
[1736342214266,0.052428,95402.0,95400.0,0.101]
[1736342214655,0.00010433,95404.0,95403.0,0.052427]
[1736342214858,0.00010433,95404.0,95400.0,0.101]
[1736342214859,0.00110433,95404.0,95400.0,0.101]
[1736342215065,0.3608,95401.0,95400.0,0.101]
[1736342217576,0.3608,95401.0,95400.0,0.153429]
[1736342217867,0.3618,95401.0,95400.0,0.153429]
[1736342218074,0.001,95401.0,95400.0,0.153429]
[1736342219262,0.3618,95401.0,95400.0,0.101]
[1736342219665,0.47,95401.0,95376.0,0.3608]
[1736342219874,0.052435,95389.0,95387.0,0.052436]
[1736342221467,0.053435,95389.0,95387.0,0.052436]
[1736342221668,0.001,95389.0,95370.0,0.1133]
[1736342221871,0.052442,95376.0,95374.0,0.052443]
[1736342222273,0.3608,95378.0,95377.0,0.052441]
[1736342222470,0.3608,95383.0,95372.0,0.052444]
[1736342222673,0.3608,95373.0,95367.0,0.1081]
[1736342222876,0.052445,95370.0,95368.0,0.052446]
[1736342223469,0.052447,95367.0,95365.0,0.522088]
[1736342224768,0.0001164,95366.0,95355.0,0.3608]
[1736342224973,0.052451,95359.0,95350.0,0.052456]
[1736342225168,0.052451,95359.0,95357.0,0.052452]
[1736342225672,0.3608,95363.0,95346.0,0.1104]
[1736342225978,0.0001164,95366.0,95365.0,0.052448]
[1736342227773,0.0011164,95366.0,95365.0,0.052448]
[1736342228085,0.0011164,95366.0,95358.0,0.00110392]
[1736342228271,0.413251,95359.0,95358.0,0.00010392]
[1736342229169,0.0001164,95366.0,95365.0,0.052448]
[1736342229381,0.0001164,95366.0,95365.0,0.413248]
[1736342230172,0.3608,95381.0,95380.0,0.05244]
[1736342230373,0.3608,95392.0,95391.0,0.052434]
[1736342230576,0.052425,95407.0,95391.0,0.413233]
[1736342230777,0.26193087,95408.0,95399.0,0.3608]
[1736342230979,0.052428,95401.0,95399.0,0.3608]
[1736342231480,0.32628499,95408.0,95405.0,0.052426]
[1736342231784,0.052424,95410.0,95407.0,0.413225]
[1736342231982,0.01210282,95413.0,95410.0,0.052423]
[1736342232181,0.18681664,95418.0,95412.0,0.052422]
[1736342232377,0.052418,95419.0,95417.0,0.3608]
[1736342232983,0.052428,95402.0,95400.0,0.052429]
[1736342233281,0.003,95410.0,95395.0,0.3608]
[1736342233282,0.052431,95397.0,95395.0,0.3608]
[1736342233482,0.052435,95389.0,95386.0,0.3608]
[1736342233889,0.052435,95389.0,95388.0,0.052435]
[1736342234588,0.2166,95396.0,95386.0,0.3608]
[1736342234779,0.052436,95388.0,95386.0,0.3608]
[1736342235193,0.052436,95388.0,95386.0,0.413236]
[1736342235587,0.001,95389.0,95388.0,0.052435]
[1736342236986,0.01231129,95409.0,95400.0,0.052429]
[1736342237188,0.052426,95406.0,95405.0,0.3608]
[1736342238483,0.003,95409.0,95405.0,0.3608]
[1736342238690,0.003,95409.0,95408.0,0.052424]
[1736342238888,0.001,95409.0,95408.0,0.052424]
[1736342239591,0.1129,95425.0,95408.0,0.052424]
[1736342239892,0.052412,95432.0,95430.0,0.052412]
[1736342240992,0.12583483,95439.0,95424.0,0.7216]
[1736342241190,0.052408,95438.0,95436.0,0.3608]
[1736342242094,0.052413,95430.0,95428.0,0.052413]
[1736342242295,0.052413,95430.0,95424.0,0.3608]
[1736342242296,0.052409,95437.0,95433.0,0.05241]
[1736342242490,0.011,95438.0,95437.0,0.052409]
[1736342244198,0.003,95438.0,95436.0,0.052409]
[1736342244401,0.003,95438.0,95424.0,0.3608]
[1736342244789,0.052412,95431.0,95427.0,0.052414]
[1736342245403,0.01186122,95434.0,95424.0,0.3608]
[1736342245603,0.052415,95426.0,95424.0,0.3608]
[1736342246401,0.1058,95425.0,95415.0,0.3644]
[1736342246702,0.052416,95424.0,95411.0,0.47044]
[1736342246901,0.052416,95424.0,95406.0,0.052425]
[1736342246902,0.052418,95420.0,95406.0,0.052425]
[1736342247099,0.052416,95424.0,95406.0,0.052425]
[1736342247295,0.052424,95410.0,95406.0,0.052425]
[1736342247805,0.052424,95409.0,95406.0,0.052425]
[1736342248395,0.052424,95409.0,95406.0,0.001]
[1736342248603,0.001,95410.0,95409.0,0.052424]
[1736342250101,0.3608,95457.0,95409.0,0.3]
[1736342250415,0.052398,95457.0,95449.0,0.052402]
[1736342250712,0.2161,95458.0,95451.0,0.3608]
[1736342251214,0.001,95457.0,95451.0,0.3608]
[1736342251710,0.0524,95453.0,95451.0,0.3608]
[1736342252211,0.0524,95453.0,95452.0,0.0524]
[1736342253004,0.3,95453.0,95424.0,0.01139576]
[1736342253202,0.3163915,95440.0,95424.0,0.01139576]
[1736342253400,0.052414,95428.0,95427.0,0.052414]
[1736342254115,0.2141,95439.0,95424.0,0.3608]
[1736342254613,0.052411,95433.0,95424.0,0.3608]
[1736342254908,0.052411,95433.0,95432.0,0.3608]
[1736342255109,0.22565812,95439.0,95433.0,0.05241]
[1736342255307,0.05241,95435.0,95433.0,0.05241]
[1736342256402,0.01355812,95439.0,95432.0,0.3608]
[1736342256602,0.002,95439.0,95438.0,0.052408]
[1736342257109,0.002,95439.0,95432.0,0.3608]
[1736342257411,0.15819575,95442.0,95433.0,0.052411]
[1736342257614,0.004,95439.0,95432.0,0.3608]
[1736342258110,0.004,95439.0,95437.0,0.052408]
[1736342258412,0.052404,95446.0,95432.0,0.3608]
[1736342258612,0.052404,95446.0,95444.0,0.3608]
[1736342258914,0.052404,95446.0,95444.0,0.413205]
[1736342260411,0.052404,95446.0,95444.0,0.3608]
[1736342260613,0.05241,95435.0,95432.0,0.413211]
[1736342260815,0.052411,95433.0,95432.0,0.3608]
[1736342261207,0.052414,95427.0,95424.0,0.3608]
[1736342261512,0.05241,95434.0,95431.0,0.052411]
[1736342261710,0.05241,95434.0,95433.0,0.3608]
[1736342261911,0.15819575,95443.0,95424.0,0.3608]
[1736342262109,0.052415,95425.0,95424.0,0.3608]
[1736342262715,0.001,95433.0,95432.0,0.052411]
[1736342263013,0.001,95433.0,95432.0,0.413211]
[1736342263710,0.01133519,95446.0,95432.0,0.3608]
[1736342263911,0.052406,95442.0,95433.0,0.052411]
[1736342264116,0.052406,95442.0,95441.0,0.3608]
[1736342264514,0.15819575,95451.0,95434.0,0.05241]
[1736342264715,0.052411,95433.0,95432.0,0.3608]
[1736342266022,0.3608,95436.0,95413.0,0.3608]
[1736342266209,0.052421,95416.0,95415.0,0.052421]
[1736342266910,0.052416,95424.0,95422.0,0.052417]
[1736342267114,0.052413,95429.0,95426.0,0.052414]
[1736342267319,0.052413,95429.0,95427.0,0.052414]
[1736342268411,0.052416,95423.0,95422.0,0.3608]
[1736342271924,0.054416,95423.0,95422.0,0.3608]
[1736342272127,0.054416,95423.0,95398.0,0.5853]
[1736342272324,0.052426,95405.0,95402.0,0.052427]
[1736342273126,0.052426,95405.0,95398.0,0.5853]
[1736342273127,0.052426,95405.0,95403.0,0.052427]
[1736342273730,0.001,95405.0,95404.0,0.052427]
[1736342274223,0.001,95405.0,95404.0,0.3608]
[1736342274422,0.001,95405.0,95404.0,0.413227]
[1736342276821,0.1101,95429.0,95405.0,0.052426]
[1736342277128,0.05242,95417.0,95415.0,0.3608]
[1736342277924,0.05242,95417.0,95416.0,0.05242]
[1736342278119,0.05242,95417.0,95415.0,0.3608]
[1736342279323,0.05242,95417.0,95415.0,0.41322]
[1736342280041,0.05342,95417.0,95415.0,0.3608]
[1736342280536,0.05342,95417.0,95415.0,0.3618]
[1736342280831,0.1149,95416.0,95415.0,0.3618]
[1736342281437,0.1149,95416.0,95415.0,0.001]
[1736342281728,0.4757,95416.0,95415.0,0.001]
[1736342281933,0.4757,95416.0,95391.0,0.3608]
[1736342281934,0.052433,95392.0,95391.0,0.3608]
[1736342282157,0.052433,95392.0,95385.0,0.3608]
[1736342282428,0.052433,95392.0,95379.0,0.00157232]
[1736342282429,0.05244,95380.0,95379.0,0.00157232]
[1736342282731,0.05244,95380.0,95372.0,0.3608]
[1736342282919,0.05244,95380.0,95371.0,0.18647431]
[1736342282920,0.413244,95373.0,95371.0,0.18647431]
[1736342283127,0.3608,95373.0,95353.0,0.3608]
[1736342283327,0.052451,95359.0,95353.0,0.3608]
[1736342283924,0.052451,95359.0,95358.0,9.2e-07]
[1736342284124,0.052451,95359.0,95343.0,0.18647431]
[1736342284125,0.05246,95344.0,95343.0,0.18647431]
[1736342284830,0.3,95344.0,95339.0,0.24843535]
[1736342285132,0.052465,95334.0,95333.0,0.31079053]
[1736342285327,0.00010176,95343.0,95322.0,0.3608]
[1736342285528,0.052468,95329.0,95322.0,0.3608]
[1736342285733,0.052469,95328.0,95322.0,0.413271]
[1736342286624,0.052469,95328.0,95323.0,0.052471]
[1736342286829,0.052469,95328.0,95322.0,0.3608]
[1736342287024,0.36087851,95327.0,95301.0,0.00056]
[1736342287231,0.01178657,95328.0,95278.0,0.00011589]
[1736342287232,0.052495,95279.0,95278.0,0.00011589]
[1736342287439,0.41341992,95279.0,95278.0,0.00011589]
[1736342288345,0.36092492,95279.0,95278.0,0.00011589]
[1736342288637,0.3608,95305.0,95278.0,0.36091589]
[1736342288835,0.05248,95307.0,95295.0,0.413287]
[1736342289030,0.3608,95302.0,95288.0,0.4704]
[1736342289233,0.052484,95300.0,95288.0,0.16209]
[1736342289431,0.052484,95300.0,95288.0,0.1096]
[1736342289626,0.052484,95300.0,95290.0,0.052489]
[1736342289842,0.052481,95305.0,95296.0,0.3608]
[1736342290036,0.3608,95307.0,95288.0,0.1096]
[1736342290238,0.052486,95296.0,95288.0,0.1096]
[1736342290430,0.052486,95296.0,95288.0,0.16209]
[1736342291043,0.052482,95305.0,95288.0,0.1096]
[1736342291229,0.3608,95308.0,95290.0,0.15819575]
[1736342291426,0.3608,95316.0,95307.0,0.05248]
[1736342291427,0.052476,95315.0,95307.0,0.05248]
[1736342291838,0.3608,95316.0,95300.0,0.1102]
[1736342292038,0.3608,95308.0,95300.0,0.1102]
[1736342292240,0.052481,95305.0,95300.0,0.1102]
[1736342292633,0.052483,95302.0,95300.0,0.1102]
[1736342293835,0.3608,95308.0,95300.0,0.1102]
[1736342294042,0.001,95302.0,95301.0,0.052483]
[1736342294340,0.001,95302.0,95300.0,0.1102]
[1736342294534,0.054482,95305.0,95300.0,0.1102]
[1736342294736,0.001,95302.0,95300.0,0.1102]
[1736342294932,0.052483,95301.0,95300.0,0.1102]
[1736342295132,0.05249,95289.0,95288.0,0.1096]
[1736342295340,0.41329,95289.0,95288.0,0.1096]
[1736342296730,0.052492,95286.0,95285.0,0.1167]
[1736342297538,0.3608,95289.0,95278.0,0.00011589]
[1736342298135,0.052495,95281.0,95278.0,0.00011589]
[1736342298344,0.052495,95280.0,95278.0,0.00011589]
[1736342298538,0.3608,95279.0,95278.0,0.00011589]
[1736342298845,0.002,95289.0,95278.0,0.00011589]
[1736342299235,0.052494,95282.0,95280.0,0.3608]
[1736342301043,0.054494,95282.0,95280.0,0.3608]
[1736342301231,0.056494,95282.0,95280.0,0.3608]
[1736342304244,0.004,95282.0,95278.0,0.00011589]
[1736342304442,0.052495,95279.0,95278.0,0.00011589]
[1736342305038,0.004,95282.0,95278.0,0.36091589]
[1736342305240,0.004,95282.0,95280.0,0.052495]
[1736342305440,0.004,95282.0,95278.0,0.36091589]
[1736342305838,0.002,95282.0,95280.0,0.052495]
[1736342306042,0.0116623,95303.0,95293.0,0.052487]
[1736342306248,0.052485,95298.0,95296.0,0.3608]
[1736342306942,0.052482,95304.0,95298.0,0.052485]
[1736342307144,0.052482,95303.0,95301.0,0.052483]
[1736342307334,0.37218544,95316.0,95296.0,0.3608]
[1736342307540,0.15819575,95311.0,95296.0,0.3608]
[1736342307741,0.052483,95302.0,95296.0,0.3608]
[1736342308343,0.052485,95299.0,95296.0,0.413286]
[1736342308741,0.052485,95298.0,95296.0,0.413286]
[1736342309241,0.052485,95298.0,95297.0,0.1028]
[1736342309846,0.056485,95298.0,95297.0,0.1028]
[1736342311444,0.062485,95298.0,95297.0,0.1028]
[1736342312449,0.062485,95298.0,95296.0,0.3608]
[1736342312649,0.052494,95282.0,95281.0,0.1063]
[1736342314750,0.054494,95282.0,95281.0,0.1063]
[1736342315553,0.056494,95282.0,95281.0,0.1063]
[1736342315754,0.004,95282.0,95281.0,0.1063]
[1736342316048,0.01130986,95292.0,95287.0,0.052491]
[1736342316049,0.052488,95292.0,95287.0,0.052491]
[1736342316252,0.052484,95299.0,95297.0,0.052485]
[1736342316647,0.052484,95299.0,95291.0,0.3608]
[1736342316648,0.1,95300.0,95299.0,0.052484]
[1736342316847,0.1,95300.0,95299.0,0.413284]
[1736342317456,0.18732019,95314.0,95313.0,0.052477]
[1736342317652,0.18732019,95314.0,95313.0,0.413277]
[1736342318047,0.052475,95316.0,95313.0,0.413277]
[1736342318449,0.052476,95315.0,95313.0,0.3608]
[1736342319157,0.004,95314.0,95313.0,0.3608]
[1736342319951,0.004,95314.0,95313.0,0.4099368]
[1736342320157,0.004,95314.0,95313.0,0.5149368]
[1736342320560,0.003,95315.0,95313.0,0.6220368]
[1736342320857,0.007,95315.0,95314.0,0.4624128]
[1736342321053,0.1,95320.0,95319.0,0.052473]
[1736342321255,0.052464,95336.0,95319.0,0.0491368]
[1736342321449,0.1,95340.0,95339.0,0.052462]
[1736342321849,0.1,95340.0,95339.0,0.1015764]
[1736342322548,0.103,95340.0,95339.0,0.4623764]
[1736342322756,0.106,95340.0,95339.0,0.4623764]
[1736342323454,0.106,95340.0,95339.0,0.413262]
[1736342324260,0.103,95340.0,95339.0,0.3628]
[1736342324663,0.1,95340.0,95339.0,0.3628]
[1736342324859,0.101,95340.0,95339.0,0.3608]
[1736342325061,0.101,95340.0,95339.0,0.3628]
[1736342325563,0.1,95340.0,95339.0,0.3628]
[1736342326062,0.1,95340.0,95339.0,0.4696]
[1736342326656,0.102,95340.0,95339.0,0.002]
[1736342327174,0.102,95340.0,95332.0,0.052466]
[1736342327363,0.104,95340.0,95332.0,0.052466]
[1736342327753,0.104,95340.0,95332.0,0.3608]
[1736342328356,0.102,95340.0,95332.0,0.3628]
[1736342328865,0.102,95340.0,95338.0,0.052463]
[1736342329052,0.101,95340.0,95338.0,0.052463]
[1736342330060,0.101,95340.0,95339.0,0.1089]
[1736342330061,0.102,95340.0,95339.0,0.1089]
[1736342331252,0.103,95340.0,95339.0,0.1089]
[1736342332060,0.104,95340.0,95339.0,0.1089]
[1736342332266,0.102,95340.0,95339.0,0.1089]
[1736342332467,0.104,95340.0,95339.0,0.1089]
[1736342332658,0.102,95340.0,95339.0,0.1109]
[1736342333156,0.101,95340.0,95339.0,0.1109]
[1736342333551,0.01146757,95359.0,95339.0,0.1109]
[1736342333867,0.1,95360.0,95358.0,0.413252]
[1736342334051,0.1114799,95360.0,95358.0,0.413252]
[1736342334257,0.1,95360.0,95359.0,0.1066]
[1736342335057,0.1,95360.0,95340.0,0.3608725]
[1736342335260,0.052455,95353.0,95341.0,0.1057]
[1736342335466,0.107,95360.0,95359.0,0.052451]
[1736342335856,0.159451,95360.0,95359.0,0.052451]
[1736342336056,0.153451,95360.0,95359.0,0.052451]
[1736342336266,0.101,95360.0,95359.0,0.052451]
[1736342337655,0.1,95360.0,95359.0,0.052451]
[1736342337860,0.102,95360.0,95359.0,0.052451]
[1736342338364,0.1,95360.0,95359.0,0.054451]
[1736342338966,0.1,95360.0,95359.0,0.052451]
[1736342339264,0.1,95380.0,95379.0,0.05244]
[1736342339465,0.60124001,95400.0,95379.0,1.24404]
[1736342339665,0.60124001,95400.0,95399.0,0.774029]
[1736342339666,0.6,95400.0,95399.0,0.774029]
[1736342340867,0.6,95400.0,95399.0,0.413229]
[1736342341071,0.601,95400.0,95399.0,0.3608]
[1736342342261,0.6,95400.0,95399.0,0.3628]
[1736342343371,0.601,95400.0,95399.0,0.3628]
[1736342343671,0.601,95400.0,95385.0,0.3608]
[1736342343864,0.052437,95386.0,95385.0,0.3608]
[1736342344060,0.3608,95396.0,95385.0,0.3608]
[1736342344261,0.052436,95388.0,95386.0,0.052436]
[1736342345071,0.052437,95386.0,95385.0,0.3638]
[1736342345267,0.052437,95386.0,95385.0,0.3608]
[1736342345771,0.05244,95380.0,95379.0,0.0006]
[1736342345974,0.052441,95378.0,95377.0,0.3608]
[1736342347070,0.052441,95378.0,95367.0,0.3608]
[1736342347071,0.052446,95368.0,95367.0,0.3608]
[1736342347468,0.3608,95378.0,95357.0,0.3608]
[1736342347665,0.052452,95358.0,95357.0,0.3608]
[1736342348574,0.052454,95354.0,95353.0,0.46992]
[1736342349164,0.052457,95349.0,95348.0,7.487e-05]
[1736342350477,0.001,95354.0,95348.0,7.487e-05]
[1736342350665,0.052457,95350.0,95348.0,7.487e-05]
[1736342350971,0.002,95349.0,95348.0,7.487e-05]
[1736342351671,0.007,95349.0,95348.0,7.487e-05]
[1736342352577,0.005,95349.0,95348.0,7.487e-05]
[1736342353477,0.008,95349.0,95348.0,7.487e-05]
[1736342354272,0.006,95349.0,95348.0,7.487e-05]
[1736342354479,0.002,95349.0,95348.0,0.00607487]
[1736342355070,0.003,95349.0,95348.0,7.487e-05]
[1736342355774,0.1134,95349.0,95348.0,7.487e-05]
[1736342356575,0.052461,95341.0,95340.0,7.25e-05]
[1736342356766,0.413261,95341.0,95340.0,7.25e-05]
[1736342357275,0.052461,95341.0,95340.0,7.25e-05]
[1736342357977,0.052461,95341.0,95340.0,0.0020725]
[1736342359175,0.057461,95341.0,95340.0,0.0010725]
[1736342359776,0.060461,95341.0,95340.0,0.0010725]
[1736342360881,0.060461,95341.0,95340.0,0.0535345]
[1736342361972,0.060461,95341.0,95340.0,0.0010725]
[1736342366484,0.07144705,95341.0,95340.0,0.0010725]
[1736342368384,0.060461,95341.0,95340.0,0.0010725]
[1736342368786,0.008,95341.0,95340.0,0.0010725]
[1736342369081,0.18732019,95349.0,95340.0,0.3618725]
[1736342369289,0.18732019,95349.0,95348.0,0.413257]
[1736342370283,0.052457,95350.0,95348.0,0.413257]
[1736342370788,0.10568647,95360.0,95348.0,0.3608]
[1736342370982,0.10568647,95370.0,95353.0,0.052455]
[1736342371183,0.052454,95355.0,95353.0,0.052455]
[1736342371992,0.052456,95351.0,95349.0,0.1087]
[1736342373392,0.01079238,95354.0,95348.0,0.3608]
[1736342373589,0.052457,95349.0,95342.0,0.1051]
[1736342373795,0.05246,95343.0,95342.0,0.1051]
[1736342374195,0.052461,95341.0,95340.0,0.3608725]
[1736342374390,0.052461,95341.0,95340.0,7.25e-05]
[1736342375593,0.12950999,95341.0,95340.0,0.3628725]
[1736342375892,0.07704899,95341.0,95340.0,0.4153345]
[1736342376896,0.052461,95342.0,95340.0,0.4153345]
[1736342377592,0.052461,95342.0,95341.0,0.1048]
[1736342377789,0.052461,95342.0,95340.0,0.3628725]
[1736342377996,0.002,95341.0,95340.0,0.3628725]
[1736342378796,0.07704047,95341.0,95340.0,0.3628725]
[1736342379098,0.07704047,95341.0,95340.0,0.3608725]
[1736342379706,0.07904047,95341.0,95340.0,0.3608725]
[1736342379991,0.005,95341.0,95340.0,0.3608725]
[1736342384290,0.005,95341.0,95323.0,0.00056]
[1736342384291,0.052471,95324.0,95323.0,0.00056]
[1736342384489,0.052478,95310.0,95309.0,0.1072]
[1736342384690,0.052483,95301.0,95300.0,0.3608]
[1736342385087,0.10568647,95310.0,95292.0,0.36136]
[1736342385088,0.21137294,95310.0,95292.0,0.36136]
[1736342385400,0.052488,95293.0,95292.0,0.3608]
[1736342385589,0.052485,95299.0,95292.0,0.3608]
[1736342385787,0.052485,95298.0,95292.0,0.3608]
[1736342385988,0.01098684,95310.0,95295.0,0.3608]
[1736342386197,0.052479,95309.0,95306.0,0.3608]
[1736342386892,0.05248,95308.0,95306.0,0.3608]
[1736342387297,0.052486,95296.0,95295.0,0.3608]
[1736342388600,0.053486,95296.0,95295.0,0.3608]
[1736342389103,0.054486,95296.0,95295.0,0.3608]
[1736342395292,0.002,95296.0,95295.0,0.3608]
[1736342395492,0.1103,95318.0,95295.0,0.3608]
[1736342395802,0.052476,95315.0,95314.0,0.3608]
[1736342396206,0.0904,95331.0,95314.0,0.3608]
[1736342396393,0.21922002,95332.0,95330.0,0.413267]
[1736342397600,0.052462,95340.0,95336.0,0.052464]
[1736342397804,0.052462,95340.0,95339.0,0.3608]
[1736342398708,0.052462,95340.0,95330.0,0.3608]
[1736342398903,0.052467,95331.0,95330.0,0.3608]
[1736342399496,0.052464,95336.0,95334.0,0.052465]
[1736342400300,0.052467,95332.0,95330.0,0.3608]
[1736342401609,0.002,95331.0,95330.0,0.3608]
[1736342402312,0.06558026,95332.0,95330.0,0.3608]
[1736342403310,0.003,95332.0,95330.0,0.413267]
[1736342405904,0.002,95331.0,95330.0,0.413267]
[1736342406508,0.001,95332.0,95330.0,0.417267]
[1736342406711,0.20568647,95360.0,95330.0,0.417267]
[1736342406712,0.052457,95350.0,95348.0,0.052457]
[1736342407007,0.052457,95350.0,95349.0,0.3608]
[1736342408205,0.054457,95350.0,95349.0,0.3608]
[1736342408410,0.002,95350.0,95349.0,0.7216]
[1736342408611,0.002,95350.0,95349.0,0.8151]
[1736342409203,0.002,95350.0,95349.0,0.7216]
[1736342409411,0.059456,95350.0,95349.0,0.7216]
[1736342410003,0.052462,95340.0,95339.0,0.47008]
[1736342410207,0.007,95350.0,95339.0,0.47008]
[1736342410208,0.0916,95349.0,95339.0,0.47008]
[1736342410417,0.052458,95348.0,95346.0,0.413258]
[1736342411911,0.052458,95348.0,95346.0,0.3608]
[1736342413012,0.056458,95348.0,95346.0,0.3608]
[1736342413421,0.058458,95348.0,95346.0,0.3608]
[1736342415521,0.058458,95348.0,95346.0,0.413258]
[1736342415522,0.006,95348.0,95346.0,0.413258]
[1736342415709,0.006,95348.0,95347.0,0.096]
[1736342415910,0.006,95348.0,95347.0,0.1878]
[1736342417113,0.002,95348.0,95347.0,0.1878]
[1736342417314,0.002,95348.0,95347.0,0.1898]
[1736342417715,0.01098265,95351.0,95347.0,0.1898]
[1736342417914,0.1,95360.0,95350.0,0.052456]
[1736342418118,0.1,95360.0,95355.0,0.3608]
[1736342418312,0.052453,95356.0,95355.0,0.3608]
[1736342419715,0.052453,95356.0,95347.0,0.1898]
[1736342419716,0.052457,95348.0,95347.0,0.002]
[1736342420013,0.052457,95348.0,95346.0,0.3608]
[1736342420014,0.052457,95348.0,95346.0,0.34996856]
[1736342420220,0.1972,95347.0,95346.0,0.34996856]
[1736342421120,0.052457,95348.0,95346.0,0.34996856]
[1736342422228,0.0632481,95348.0,95346.0,0.34996856]
[1736342422423,0.0632481,95348.0,95346.0,0.35096856]
[1736342423016,0.052454,95354.0,95353.0,0.052455]
[1736342424321,0.1,95360.0,95358.0,0.052452]
[1736342424629,0.1,95360.0,95359.0,0.4546]
[1736342425125,0.0999275,95360.0,95359.0,1.01744]
[1736342425328,0.25053717,95367.0,95360.0,0.052451]
[1736342425626,0.25053717,95367.0,95366.0,0.413248]
[1736342425831,0.25053717,95383.0,95379.0,0.05244]
[1736342426124,0.25053717,95383.0,95379.0,0.41324]
[1736342427117,0.102,95380.0,95379.0,0.41324]
[1736342427516,0.103,95380.0,95379.0,0.41324]
[1736342427718,0.25053717,95402.0,95399.0,0.052429]
[1736342427923,0.6,95400.0,95399.0,0.774029]
[1736342429728,0.61,95400.0,95399.0,0.775029]
[1736342436130,0.198488,95400.0,95399.0,1.441429]
[1736342436333,1e-06,95400.0,95399.0,1.445429]
[1736342436837,1e-06,95400.0,95399.0,1.443429]
[1736342437025,0.1,95420.0,95419.0,0.052418]
[1736342437228,0.1,95420.0,95419.0,0.774018]
[1736342439130,0.105,95420.0,95419.0,0.774018]
[1736342441034,0.105,95420.0,95419.0,0.79141463]
[1736342442028,0.105,95420.0,95419.0,0.774018]
[1736342446236,0.157418,95420.0,95419.0,0.774018]
[1736342446534,0.105,95420.0,95419.0,0.774018]
[1736342449136,0.105,95420.0,95419.0,0.627018]
[1736342459344,0.105,95420.0,95412.0,0.18535542]
[1736342459345,0.4658,95420.0,95412.0,0.18535542]
[1736342459645,0.052424,95408.0,95407.0,0.24714056]
[1736342460041,0.052428,95402.0,95401.0,0.3089257]
[1736342460244,0.10568647,95411.0,95390.0,0.00157225]
[1736342460447,0.052433,95393.0,95391.0,0.10186209]
[1736342460635,0.052433,95393.0,95391.0,0.052434]
[1736342460838,0.052434,95391.0,95390.0,0.00157225]
[1736342461242,0.052437,95385.0,95384.0,0.46964]
[1736342461549,0.3608,95403.0,95384.0,0.46964]
[1736342461550,0.052434,95391.0,95384.0,0.46964]
[1736342461745,0.3608,95403.0,95388.0,0.052435]
[1736342461945,0.18834905,95391.0,95388.0,0.052435]
[1736342462145,0.052435,95390.0,95388.0,0.052435]
[1736342462449,0.18834905,95391.0,95372.0,0.052444]
[1736342462642,0.0927,95389.0,95370.0,0.10568647]
[1736342462947,0.052442,95376.0,95375.0,0.052442]
[1736342463137,0.0927,95389.0,95372.0,0.3608]
[1736342463343,0.052439,95382.0,95372.0,0.3608]
[1736342463544,0.15673831,95383.0,95372.0,0.3608]
[1736342463748,0.052444,95373.0,95372.0,0.3608]
[1736342464044,0.052455,95353.0,95345.0,0.3608]
[1736342464537,0.052455,95353.0,95345.0,0.413259]
[1736342464741,0.01751664,95353.0,95345.0,0.3608]
[1736342464937,0.052452,95358.0,95351.0,0.052456]
[1736342465141,0.052452,95358.0,95353.0,0.3608]
[1736342465647,0.12317746,95366.0,95353.0,0.3608]
[1736342465847,0.12317746,95366.0,95358.0,0.052452]
[1736342465848,0.052449,95363.0,95358.0,0.052452]
[1736342466747,0.12317746,95366.0,95358.0,0.052452]
[1736342466946,0.12317746,95366.0,95353.0,0.3608]
[1736342467149,0.09,95365.0,95353.0,0.3608]
[1736342467337,0.002,95358.0,95348.0,0.00010012]
[1736342467853,0.052455,95354.0,95353.0,0.3608]
[1736342468047,0.002,95358.0,95353.0,0.3608]
[1736342468253,0.01749099,95366.0,95353.0,0.3608]